Cogmind - Beta 9.1 @@@ ROGUE MODE // 2019.11.05 @ 23:44:19 Player: arsonius Result: Destroyed by D-53 Grenadier with Mini Grenade Launcher Performance ------------- Evolutions (0) 0 Regions Visited (2) 400 Robots Destroyed (32) 160 Value Destroyed (521) 521 Prototype IDs (0) 0 Alien Tech Used (0) 0 Bonus (-332) -332 TOTAL SCORE: 749 Bonus ------- Follower Combat Kills 21 Friendly Fire -353 Cogmind --------- Core Integrity 0/250 Matter 270/300 Energy 59/100 System Corruption 1% Temperature Cool (0) Location -10/Mines Parts ------- Power (1) Propulsion (2) Aluminum Leg Aluminum Leg Utility (2) Medium Storage Unit Light Armor Plating Weapon (2) Light Cannon Inventory (8) Light Ion Engine Aluminum Leg Medium Storage Unit Structural Scanner Improved Terrain Scanner Seismic Analyzer Mining Laser Peak State ------------ Power Ion Engine Propulsion Aluminum Leg Aluminum Leg Utility Medium Storage Unit Improved Terrain Scanner Weapon Light Cannon Grenade Launcher Inventory Light Ion Engine Aluminum Leg Aluminum Leg Medium Storage Unit Structural Scanner Seismic Analyzer Light Armor Plating Mining Laser [Rating: 8] Favorites ----------- Power Light Ion Engine Engine Light Ion Engine Propulsion Aluminum Leg Leg Aluminum Leg Utility Medium Storage Unit Device Structural Scanner Storage Medium Storage Unit Protection Light Armor Plating Weapon Light Cannon Energy Gun Medium Laser Ballistic Gun Assault Rifle Ballistic Cannon Light Cannon Launcher Grenade Launcher Special Weapon Mining Laser Build | -11 -10 -10 ------- Run | Scr Mat Min Slots Evolved . | . . . Power . | . . . Propulsion . | . . . Utility . | . . . Weapon . | . . . Parts Attached 35 | 6 21 8 Power 5 | 1 3 1 Engine 5 | 1 3 1 Core . | . . . Reactor . | . . . Propulsion 10 | 2 4 4 Treads . | . . . Leg 10 | 2 4 4 Wheel . | . . . Hover . | . . . Flight . | . . . Utility 10 | 1 7 2 Device 3 | . 2 1 Storage 2 | 1 1 . Processor . | . . . Hackware . | . . . Protection 5 | . 4 1 Artifact . | . . . Weapon 10 | 2 7 1 Energy Gun 4 | 1 3 . Energy Cannon . | . . . Ballistic Gun 1 | 1 . . Ballistic Cannon 2 | . 2 . Launcher 1 | . . 1 Special Weapon 2 | . 2 . Impact Weapon . | . . . Slashing Weapon . | . . . Piercing Weapon . | . . . Special Melee Weapon . | . . . Unidentified Prototypes . | . . . Parts Lost 3 | . . 3 Power 1 | . . 1 Propulsion 1 | . . 1 Utility . | . . . Weapon 1 | . . 1 Highest Loss Streak 3 | . . 3 Average Slot Usage (%) 98 | . 97 99 Engine 14 | . 14 14 Leg 27 | . 28 27 Device 6 | . 4 14 Storage 14 | . 14 14 Protection 6 | . 8 . Energy Gun 7 | . 10 . Ballistic Gun 1 | . 2 . Ballistic Cannon 12 | . 11 14 Launcher 3 | . . 13 Special Weapon 2 | . 2 . Naked Turns . | . . . Heaviest Build 21 | 12 21 20 Greatest Support 20 | 20 20 20 Greatest Overweight (x) 1 | 1 1 . Average Overweight (x) . | . . . Largest Inventory Capacity 8 | 6 8 8 Average Capacity 7 | 5 7 8 Most Carried 8 | 4 8 8 Average Carried 7 | 2 7 7 Final Capacity 8 | 6 8 8 Final Carried 8 | 4 8 7 Class Distribution -------------------- 85% | Mutant 14% | Scavenger-Mutant Dominant Class ---------------- Mutant | -10/Materials Scavenger-Mutant | -10/Mines Resources | -11 -10 -10 ----------- Run | Scr Mat Min Matter Collected 883 | 260 410 213 Remotely . | . . . Salvage Created 574 | 20 372 182 Parts 41 | 3 30 8 Haulers Intercepted . | . . . Recyclers Shooed 3 | . 3 . Parts Field Recycled . | . . . Retrieved Matter . | . . . Parts Self-Destructed . | . . . Prevented . | . . . Kills | -11 -10 -10 ------- Run | Scr Mat Min Combat Hostiles Destroyed 23 | . 13 10 Guns 6 | . 6 . Cannons 10 | . 7 3 AOE 7 | . . 7 Classes Destroyed 7 | 1 4 2 Builder 1 | . . 1 Tunneler 2 | 1 1 . Operator 1 | . 1 . Watcher 3 | . 3 . Swarmer 6 | . 6 . Grunt 11 | . 7 4 Assembled 8 | . . 8 Best Kill Streak 6 | 1 3 6 Combat Bots Only 5 | . 3 5 Max Kills in Single Turn 4 | 1 2 4 Gunslinging . | . . . Exploded 2 | . . 2 Melee . | . . . Uniques/NPCs Destroyed . | . . . Combat | -11 -10 -10 -------- Run | Scr Mat Min Damage Taken 1055 | . 505 550 Core 261 | . 87 174 Absorbed by Shields . | . . . Core Remaining (%) 100 | 100 . . Volleys Fired 86 | 2 64 20 Largest 2 | 1 2 1 Hottest 85 | 40 85 35 Shots Fired 127 | 2 105 20 Gun 54 | 2 52 . Cannon 63 | . 53 10 Launcher 10 | . . 10 Special . | . . . Kinetic 70 | . 60 10 Thermal 47 | 2 45 . Explosive 10 | . . 10 Electromagnetic . | . . . Robot Hit Streak 11 | 2 11 3 Robot Miss Streak 4 | . 4 2 Penetration Max . | . . . Secondary Targets . | . . . Shots Hit Robots 75 | 2 63 10 Core Hits 54 | 1 27 26 Critical Hits . | . . . Critical Kills . | . . . Critical Parts Destroyed . | . . . Melee Attacks . | . . . Impact . | . . . Slashing . | . . . Piercing . | . . . Sneak Attacks . | . . . Combat Hostiles . | . . . Follow-up Attacks . | . . . Damage Inflicted 1718 | 22 862 834 Guns 403 | 22 381 . Cannons 622 | . 481 141 Explosions 693 | . . 693 Melee . | . . . Ramming . | . . . Kinetic 672 | . 531 141 Thermal 353 | 22 331 . Explosive 693 | . . 693 Electromagnetic . | . . . Impact . | . . . Slashing . | . . . Piercing . | . . . Highest Corruption 1 | . 1 1 Average Corruption 1 | . 1 1 Corruption Purged . | . . . Effects 10 | . 3 7 Message Errors 7 | . 1 6 Energy Discharges 1 | . 1 . Data Loss (minor) 1 | . . 1 Weapon Failures 1 | . 1 . Overload Shots . | . . . Overflow Damage 44 | . 7 37 Projectiles 7 | . 7 . Explosions 37 | . . 37 Melee . | . . . Knockbacks 7 | . 5 2 Impact . | . . . Kinetic 7 | . 5 2 Secondary . | . . . Self-Inflicted Damage 19 | . . 19 Shots 2 | . . 2 Rammed . | . . . Targets Rammed . | . . . Kicked . | . . . Crushed . | . . . Highest Temperature 264 | . 264 27 Average Temperature 63 | . 66 18 Received Heat Transfer 293 | . 222 71 Effects 1 | . 1 . Energy Bleed 1 | . 1 . Siege Activations . | . . . Robots Corrupted . | . . . Combat Hostiles . | . . . Parts Fried . | . . . Impact Corruptions . | . . . Robots Melted . | . . . Combat Hostiles . | . . . Parts Melted . | . . . Heat Transferred 953 | 50 903 . Parts Sabotaged . | . . . Parts Stolen . | . . . Parts Stripped . | . . . Power Chain Reactions . | . . . Missiles Intercepted . | . . . Alert | -11 -10 -10 ------- Run | Scr Mat Min Peak Influence 232 | 5 232 188 Average Influence 74 | 1 67 110 Maximum Alert Level 1 | . 1 . Low Security (%) 91 | . . . Level 1 8 | . . . Level 2 . | . . . Level 3 . | . . . Level 4 . | . . . Level 5 . | . . . High Security . | . . . Max Security . | . . . Squads Dispatched 1 | . 1 . Investigation . | . . . Extermination . | . . . Reinforcement 1 | . 1 . Assault . | . . . Garrison . | . . . Intercept . | . . . Construction Impeded . | . . . Haulers Reinforced . | . . . Stealth | -11 -10 -10 --------- Run | Scr Mat Min Distress Signals . | . . . Communications Jammed . | . . . Distress Signals . | . . . Times Spotted 42 | . 25 17 Peak Tracking Total 7 | . 4 7 Tactical Retreats 3 | . 1 2 Traps | -11 -10 -10 ------- Run | Scr Mat Min Traps Triggered 2 | . 2 . Indirectly . | . . . Trap Hack Attempts . | . . . Triggered . | . . . Disarmed . | . . . Reprogrammed . | . . . Reused . | . . . Traps Extracted . | . . . Installed . | . . . Triggered . | . . . Machines | -11 -10 -10 ---------- Run | Scr Mat Min Machines Disabled 2 | . 1 1 Max in Single Turn 1 | . 1 1 Machines Sabotaged . | . . . Garrisons Compromised . | . . . Overloaded Fab Kills . | . . . Fab Network Shutdowns . | . . . Hacking | -11 -10 -10 --------- Run | Scr Mat Min Machines Accessed 6 | . 6 . Terminals 6 | . 6 . Fabricators . | . . . Repair Stations . | . . . Recycling Units . | . . . Scanalyzers . | . . . Garrison Access . | . . . Total Hacks 23 | . 23 . Successful 12 | . 12 . Failed 11 | . 11 . Catastrophic 1 | . 1 . Database Lockouts . | . . . Manual 13 | . 13 . Terminals 23 | . 23 . Fabricators . | . . . Repair Stations . | . . . Recycling Units . | . . . Scanalyzers . | . . . Garrison Access . | . . . Terminal Hacks 12 | . 12 . Part Schematic 2 | . 2 . Robot Analysis 1 | . 1 . Emergency Access Points 1 | . 1 . Terminal Index 1 | . 1 . Unreport Threat 1 | . 1 . Dispatch Records 1 | . 1 . Maintenance Status 1 | . 1 . Surveillance Status 1 | . 1 . Patrol Status 1 | . 1 . Coupling Status 1 | . 1 . Hauler Manifests 1 | . 1 . Fabricator Hacks . | . . . Repair Station Hacks . | . . . Recycling Unit Hacks . | . . . Scanalyzer . | . . . Garrison Access Hacks . | . . . Unauthorized Hacks . | . . . Terminals . | . . . Fabricators . | . . . Repair Stations . | . . . Recycling Units . | . . . Scanalyzers . | . . . Garrison Access . | . . . Data Cores Recovered . | . . . Used . | . . . Hacking Detections 6 | . 6 . Full Trace Events . | . . . Feedback Events . | . . . Feedback Blocked . | . . . Robot Schematics Acquired . | . . . Robots Built . | . . . Matter . | . . . Time . | . . . Total Robot Build Rating . | . . . Part Schematics Acquired 2 | . 2 . Parts Built . | . . . Matter . | . . . Time . | . . . Total Part Build Rating . | . . . Parts Repaired . | . . . Time . | . . . Parts Recycled . | . . . Recycled Matter . | . . . Retrieved Matter . | . . . Retrieved Components . | . . . Parts Scanalyzed . | . . . Part Schematics Acquired . | . . . Parts Damaged . | . . . Bothacking | -11 -10 -10 ------------ Run | Scr Mat Min Used RIF Installer . | . . . Robots Hacked . | . . . Non-combat . | . . . Combat . | . . . Robot Hacks Applied . | . . . Relay Couplers Released . | . . . Robots Rewired . | . . . Allies Hacked . | . . . Hacks Repelled . | . . . Allies | -11 -10 -10 -------- Run | Scr Mat Min Total Allies 3 | . . 3 Largest Group 3 | . . 3 Highest-Rated Group 40 | . . 40 Highest-Rated Ally 16 | . . 16 Total Orders . | . . . Ally Attacks 22 | . . 22 Total Damage 168 | . . 168 Kills 5 | . . 5 Allies Corrupted . | . . . Allies Melted . | . . . Intel | -11 -10 -10 ------- Run | Scr Mat Min Robot Analysis Total 1 | . 1 . Derelict Logs Recovered 2 | . . 2 Drone Launches . | . . . Drone Recoveries . | . . . Exploration | -11 -10 -10 ------------- Run | Scr Mat Min Turns Passed 2094 | 62 1569 463 Spaces Moved 1461 | 47 1078 336 Core 21 | 21 . . Treads . | . . . Legs 1440 | 26 1078 336 Wheels . | . . . Hover . | . . . Flight . | . . . Fastest Speed 50 | 50 120 120 Average Speed 121 | 95 122 120 Slowest Speed 150 | 120 150 120 Overloaded Moves . | . . . Propulsion Burnouts . | . . . Robots Hopped . | . . . Cave-ins Triggered . | . . . Exploration Rate (%) 57 | 4 99 70 Regions Visited 2 Branch Regions 1 Pre-discovered Areas . | . . . Known Exits Taken . | . . . Unknown Exits Taken 2 | 1 1 . Scrap Searched . | . . . Spaces Dug . | . . . Terrain Destroyed 69 | . . 69 Melee . | . . . Projectile . | . . . AOE 69 | . . 69 Actions | -11 -10 -10 --------- Run | Scr Mat Min Total 1663 | 61 1225 377 Wait 36 | . 27 9 Move 1459 | 46 1077 336 Hop . | . . . Pick Up 23 | 7 16 . Fast Attach 10 | 3 6 1 Attach 6 | 3 2 1 Detach . | . . . Swap 19 | . 13 6 Drop 24 | . 20 4 Fire 86 | 2 64 20 Melee . | . . . Ram . | . . . Kick . | . . . Crush . | . . . Escape Stasis . | . . . Rewire . | . . . Trap . | . . . Miscellaneous . | . . . Route ------- -11/Scrapyard -10/Materials (discovered 4 exits: [*Mat x3] / [*Min]) -10/Mines (discovered 1 exit: [*Mat]) History --------- Turn | Location | Event 11 | -11/Scrapyard | Discovered new exit (range 15) 63 | -11/Scrapyard | Entered Materials 312 | -10/Materials | Build established: Mutant 479 | -10/Materials | Discovered new exit (range 8) 626 | -10/Materials | Discovered new exit (range 14) 913 | -10/Materials | Discovered new exit (range 16) 1095 | -10/Materials | Discovered new exit (range 14) 1632 | -10/Materials | Entered Mines 1732 | -10/Mines | Assisted by bots powering up and referring to "LRC-V3" 1789 | -10/Mines | Learned Materials terminal intel 1802 | -10/Mines | Found a hidden stash of uninstalled traps 1851 | -10/Mines | Discovered new exit (range 14) 1885 | -10/Mines | Assembled infested the area 2081 | -10/Mines | Build established: Scavenger-Mutant 2090 | -10/Mines | Core integrity fell below 50% 2092 | -10/Mines | Core integrity fell below 20% 2095 | -10/Mines | Destroyed by D-53 Grenadier with Mini Grenade Launcher Last Messages --------------- Acquired 13 matter. The unstable cave ceiling collapses. as-04911 knocked back. as-04911 destroyed. Acquired 22 matter. Laser Drill disabled. as-68984 destroyed. Acquired 10 matter. as-92095 destroyed. as-80702 destroyed. The unstable cave ceiling collapses. Acquired 40 matter. The unstable cave ceiling collapses. System corrupted: Component data lost. Aluminum Leg destroyed. Lgt. Ion Engine destroyed. Destroyed Shock Absorption System. Grenade Launcher destroyed. Trooper 1b destroyed. The unstable cave ceiling collapses. Map ----- +----------------------------------------------------+ | ???????????## %##??????#??????????????????## | | ???????????# #????? #???????????????????## | | ???????????# !##??? ##?#?????????????????? | | ???????????## =%=### #????????????????#??? | | ??????##???## % #?????????????##????? | | ???#??###### " #????#??????????????? | | ?????## # " ### #??????????????????? | | ?????# #?? #????????????????? | | ?????# #?#? ???????#??????#? | | ?????## #???? ???????????????? | | ??????## ##%# ##????? ???????????????? | | ???????## ## #?????#? ????????????????? | | ????????###?# #???????? ?????????????????? | | ????????#???# # ###?#??????? ??????????????? | | ????????????#### #??? #?????# ?????????????? | | ???????????????# #??? ##??# ??????????????? | | ???????????????# #??? ###% #??????????????? | | ???????????????# ### #??????????????? | | ?????????####### #??????????????? | | ?????????# #??????????????? | | ?????????# ### #######%| #???????????????? | | ?????????# #?# #??### #####???????????????? | | ?????????# ### #?## ##??????????????????? | | ??????#?## ## ### #??????????????????? | | ???????## ## #??????????????????? | | ???????# @ ##??????????????????? | | ???????# ### ##??????????????????? | | ???????# ##?# #??????????????????? | | ???????# ##?## ##??????????????????? | | ???????# """ #??## ??????????????????? | | ??????## """ #??# ?????????????????? | | ????### """ ##? ????????????????? | | ???## ##?? d ???????????????? | | ???# ####?? d # ??????????????? | | ???# ##???### ## ? ?????????????? | | ???# ##????######?? ? ????????????? | | ???## ##????????#????### # ?????????????? | | ????#####???????????#????# # # ??????????????? | | ??????????????????????????##?#????????????????? | | ??????????????????????????????????????????????? | | ????#?????????????????????????????????????????? | | #?????????????????????????????????????????????? | | ??????????????????????????????????????????????? | | ??????????????????????????????????????????????? | | | | | | | | | | | | | +----------------------------------------------------+ Best States ------------- Heat Dissipation 25 Energy Generation 10 Energy Capacity 250 Matter Stores 300 Matter Capacity 300 Sight Range 16 Terrain Scan Range 16 Terrain Scan Density 10 Armor Coverage 150 Evasion (%) 40 Item Schematics ----------------- Signal Interpreter | -10/Materials | Hacked Hcp. Matter Pod | -10/Materials | Hacked Robot Schematics ------------------ None Fabricated ------------ Nothing Alien Tech Used ----------------- None Achievements -------------- None Challenges ------------ None Game ------ Seed FocalLightLog Manual? 0 Play Time 00:53:04 Cumulative 44.5 hours Start 2019.11.05 @ 21:49:05 End 2019.11.05 @ 23:44:19 Sessions 1 Manual Loads 0 Difficulty Rogue Special Mode None Game No. 15 Rogue 15 Adventurer 0 Explorer 0 Win Type - Total 0 Types 0/0/0/0/0/0/0 Lore% 27 Gallery% 39 Achievement% 29 Wizard Run 0 Options --------- ASCII 1 Keyboard 0 Movement Numpad Keybinds 0 Fullscreen 1 Font 12/Smallcaps Map View 83x54 Tactical HUD 0 Map Filters NONE Filters NONE Steam 1 RUN: 773c3854-e1fc-4f21-baa4-c2c68129a95a